Cogmind - Beta 15 @@@ ROGUE MODE // 2025.05.06 @ 21:33:11 Player: DannyCarnage Result: Destroyed by S-10 Pest with Light Assault Rifle Performance ------------- Evolutions (0) 0 Regions Visited (2) 400 Robots Destroyed (10) 50 Value Destroyed (252) 252 Prototype IDs (0) 0 Alien Tech Used (0) 0 Bonus (0) 0 TOTAL SCORE: 702 Bonus ------- None Cogmind --------- Core Integrity 0/250 Matter 271/300 Energy 125/125 System Corruption 0% Temperature Cool (0) Movement Core (150) Ox2 Location -10/Mines Parts ------- > --- POWER (1) -------- Light Ion Engine > --- PROPULSION (2) --- (None) > --- UTILITY (2) ------ Small Storage Unit > --- WEAPON (2) ------- Light Assault Rifle > --- INVENTORY (8) ---- High-capacity Matter Pod (119) Visual Processing Unit Signal Interpreter Peak State ------------ > --- POWER ------------ Ion Engine > --- PROPULSION ------- Aluminum Leg Aluminum Leg > --- UTILITY ---------- Small Storage Unit High-capacity Matter Pod > --- WEAPON ----------- Medium Laser Assault Rifle > --- INVENTORY -------- Light Ion Engine Light Treads Light Treads Light Assault Rifle [Rating: 7] Favorites ----------- Power Ion Engine Engine Ion Engine Propulsion Aluminum Leg Treads Light Treads Leg Aluminum Leg Utility Small Storage Unit Device Seismic Detector Storage Small Storage Unit Weapon Medium Laser Energy Gun Medium Laser Ballistic Gun Assault Rifle Build | -11 -10 -10 ------- Run | Yrd Mat Min Slots Evolved . | . . . Power . | . . . Propulsion . | . . . Utility . | . . . Weapon . | . . . Parts Attached 13 | 6 1 6 Power 3 | 1 . 2 Engine 3 | 1 . 2 Core . | . . . Reactor . | . . . Propulsion 4 | 2 . 2 Treads 2 | . . 2 Leg 2 | 2 . . Wheel . | . . . Hover . | . . . Flight . | . . . Utility 3 | 1 1 1 Device 1 | . . 1 Storage 2 | 1 1 . Processor . | . . . Hackware . | . . . Protection . | . . . Artifact . | . . . Weapon 3 | 2 . 1 Energy Gun 1 | 1 . . Energy Cannon . | . . . Ballistic Gun 2 | 1 . 1 Ballistic Cannon . | . . . Launcher . | . . . Special Weapon . | . . . Impact Weapon . | . . . Slashing Weapon . | . . . Piercing Weapon . | . . . Special Melee Weapon . | . . . Unidentified Prototypes . | . . . Parts Lost 9 | . . 9 Power 2 | . . 2 Propulsion 4 | . . 4 Utility 1 | . . 1 Weapon 2 | . . 2 Highest Loss Streak 9 | . . 9 To Critical Strikes . | . . . Average Backups 4 | 3 5 5 Power 1 | 1 1 1 Propulsion 1 | 1 2 . Utility . | . 1 3 Weapon . | . 1 . Tool/Special . | . . . Unused Backups 1 | . . 1 Power . | . . . Propulsion . | . . . Utility 1 | . . 1 Weapon . | . . . Tool/Special . | . . . Average Slot Usage (%) 95 | . 99 79 Engine 13 | . 14 9 Treads 2 | . . 14 Leg 24 | . 28 9 Device 2 | . . 10 Storage 25 | . 27 16 Energy Gun 13 | . 14 9 Ballistic Gun 13 | . 14 9 Peak Build Rating 7 | 6 7 7 Average Rating 6 | 5 6 5 On Entrance 4 | . 6 7 Naked Turns . | . . . Heaviest Build 18 | 14 18 18 Greatest Support 40 | 20 20 40 Greatest Overweight (x) 4 | . . 4 Average Overweight (x) . | . . . Largest Inventory Capacity 8 | 8 8 8 Average Capacity 7 | 7 8 8 Most Carried 8 | 5 8 8 Average Carried 4 | 3 6 5 Final Capacity 8 | 8 8 8 Final Carried 8 | 4 8 3 Class Distribution -------------------- 100% | Mutant Dominant Class ---------------- Mutant | -10/Materials Mutant | -10/Mines Resources | -11 -10 -10 ----------- Run | Yrd Mat Min Matter Collected 487 | 240 247 . Remotely . | . . . Salvage Created 299 | . 282 17 Parts 11 | . 9 2 Haulers Intercepted . | . . . Recyclers Shooed . | . . . Parts Field Recycled . | . . . Retrieved Matter . | . . . Parts Self-Destructed . | . . . Prevented . | . . . Kills | -11 -10 -10 ------- Run | Yrd Mat Min Combat Hostiles Destroyed 9 | . 8 1 Guns 9 | . 8 1 Classes Destroyed 3 | . 3 . Watcher 1 | . 1 . Swarmer 4 | . 3 1 Grunt 5 | . 5 . Best Kill Streak 2 | . 2 1 Combat Bots Only 2 | . 2 1 Max Kills in Single Turn 1 | . 1 1 Gunslinging . | . . . Exploded . | . . . Melee . | . . . Uniques/NPCs Destroyed . | . . . Combat | -11 -10 -10 -------- Run | Yrd Mat Min Hostile Shots Fired 109 | . 40 69 Missed 29 | . 16 13 Hits 80 | . 24 56 Melee 18 | . . 18 Projectile 62 | . 24 38 Critical Strikes 2 | . 1 1 Part Disruptions 2 | . . 2 Damage Taken 1190 | . 301 889 Core 255 | . 18 237 Absorbed by Shields . | . . . Core Remaining (%) 100 | 100 . . Volleys Fired 42 | . 36 6 Largest 2 | . 2 2 Hottest 70 | . 70 70 Shots Fired 80 | . 72 8 Gun 80 | . 72 8 Cannon . | . . . Launcher . | . . . Special . | . . . Kinetic 40 | . 36 4 Thermal 40 | . 36 4 Explosive . | . . . Electromagnetic . | . . . Robot Hit Streak 10 | . 10 2 Robot Miss Streak 5 | . 5 2 Penetration Max . | . . . Secondary Targets 1 | . 1 . Max Gunslinging Chain 1 | . 1 . Shots Hit Robots 43 | . 39 4 Core Hits 19 | . 17 2 Critical Kills . | . . . Critical Parts Destroyed . | . . . Critical Strikes 1 | . 1 . Burn 1 | . 1 . Melee Attacks . | . . . Impact . | . . . Slashing . | . . . Piercing . | . . . Sneak Attacks . | . . . Combat Hostiles . | . . . Follow-up Attacks . | . . . Damage Inflicted 520 | . 477 43 Guns 520 | . 477 43 Cannons . | . . . Explosions . | . . . Melee . | . . . Ramming . | . . . Kinetic 272 | . 255 17 Thermal 248 | . 222 26 Explosive . | . . . Electromagnetic . | . . . Impact . | . . . Slashing . | . . . Piercing . | . . . Highest Corruption . | . . . Average Corruption . | . . . Corruption Purged . | . . . Corruption Blocked . | . . . Overload Shots . | . . . Overflow Damage . | . . . Projectiles . | . . . Explosions . | . . . Melee . | . . . Knockbacks . | . . . Impact . | . . . Kinetic . | . . . Secondary . | . . . Self-Inflicted Damage . | . . . Shots . | . . . Rammed . | . . . Targets Rammed . | . . . Kicked . | . . . Crushed . | . . . Highest Temperature 117 | . 117 25 Average Temperature 39 | . 40 15 Received Heat Transfer 276 | . 156 120 Siege Activations . | . . . Martial Activations . | . . . Shielding Activations . | . . . Robots Disrupted . | . . . Combat Hostiles . | . . . Robots Corrupted . | . . . Combat Hostiles . | . . . Parts Fried . | . . . Impact Corruptions . | . . . Robots Melted . | . . . Combat Hostiles . | . . . Parts Melted . | . . . Heat Transferred 814 | . 740 74 Parts Sabotaged . | . . . Parts Stolen . | . . . Parts Stripped . | . . . Power Chain Reactions . | . . . Alert | -11 -10 -10 ------- Run | Yrd Mat Min Maximum Alert Level . | . . . Low Security (%) 100 | 100 100 100 Level 1 . | . . . Level 2 . | . . . Level 3 . | . . . Level 4 . | . . . Level 5 . | . . . High Security . | . . . Max Security . | . . . Peak Influence 127 | . 127 35 Initial 32 | . . 32 Average 17 | . 56 13 Influence Increases 308 | . 248 60 Destroy 0b10 Robot/C 180 | . 160 20 Destroy 0b10 Robot/NC 5 | . 5 . Destroy Leader 42 | . 32 10 Successful Hack 4 | . 4 . Destroy Structure 2 | . 2 . Lose Combat Pursuer 75 | . 45 30 Influence Decreases 303 | . 164 139 Entered New Map 52 | . . 52 Time Decay 194 | . 164 30 Lost Part 57 | . . 57 Squads Dispatched . | . . . Investigation . | . . . Extermination . | . . . Reinforcement . | . . . Assault . | . . . Garrison . | . . . Intercept . | . . . Searches Triggered . | . . . Construction Impeded . | . . . Haulers Reinforced . | . . . Active Scanning Responses . | . . . Cargo Convoy Interrupts . | . . . Stealth | -11 -10 -10 --------- Run | Yrd Mat Min Distress Signals 2 | . 1 1 Communications Jammed . | . . . Distress Signals . | . . . Times Spotted 36 | . 18 18 Peak Tracking Total 9 | . 4 9 Tactical Retreats 5 | . 2 3 Traps | -11 -10 -10 ------- Run | Yrd Mat Min Traps Triggered . | . . . Indirectly . | . . . Trap Hack Attempts . | . . . Triggered . | . . . Disarmed . | . . . Reprogrammed . | . . . Reused . | . . . Traps Extracted . | . . . Installed . | . . . Triggered . | . . . Machines | -11 -10 -10 ---------- Run | Yrd Mat Min Machines Disabled . | . . . Max in Single Turn . | . . . Machines Repaired . | . . . Machines Dismantled . | . . . Machines Sabotaged . | . . . Overloaded Fab Kills . | . . . Hacking | -11 -10 -10 --------- Run | Yrd Mat Min Machines Accessed 3 | . 3 . Terminals 3 | . 3 . Fabricators . | . . . Repair Stations . | . . . Recycling Units . | . . . Scanalyzers . | . . . Garrison Access . | . . . Total Hacks 4 | . 4 . Successful 2 | . 2 . Failed 2 | . 2 . Catastrophic 1 | . 1 . Database Lockouts . | . . . Manual . | . . . Terminals 4 | . 4 . Fabricators . | . . . Repair Stations . | . . . Recycling Units . | . . . Scanalyzers . | . . . Garrison Access . | . . . Terminal Hacks 2 | . 2 . Branch Access Points 1 | . 1 . Dispatch Records 1 | . 1 . Fabricator Hacks . | . . . Repair Station Hacks . | . . . Recycling Unit Hacks . | . . . Scanalyzer . | . . . Garrison Access Hacks . | . . . Unauthorized Hacks . | . . . Terminals . | . . . Fabricators . | . . . Repair Stations . | . . . Recycling Units . | . . . Scanalyzers . | . . . Garrison Access . | . . . Data Cores Recovered . | . . . Used . | . . . Hacking Detections . | . . . Full Trace Events . | . . . Feedback Events . | . . . Feedback Blocked . | . . . Robot Schematics Acquired . | . . . Robots Built . | . . . Authchips . | . . . Time . | . . . Total Robot Build Rating . | . . . Part Schematics Acquired . | . . . Parts Built . | . . . Authchips . | . . . Time . | . . . Total Part Build Rating . | . . . Parts Repaired . | . . . Time . | . . . Parts Recycled . | . . . Recycled Matter . | . . . Retrieved Matter . | . . . Retrieved Components . | . . . Parts Scanalyzed . | . . . Part Schematics Acquired . | . . . Parts Damaged . | . . . Bothacking | -11 -10 -10 ------------ Run | Yrd Mat Min Used RIF Installer . | . . . Robots Hacked . | . . . Non-combat . | . . . Combat . | . . . Robot Hacks Applied . | . . . Relay Couplers Released . | . . . Fabnet Peak Effective % . | . . . Robots Rewired . | . . . Allies Hacked . | . . . Hacks Repelled . | . . . Allies | -11 -10 -10 -------- Run | Yrd Mat Min Total Allies . | . . . Largest Group . | . . . Highest-Rated Group . | . . . Highest-Rated Ally . | . . . Total Orders . | . . . Ally Attacks . | . . . Total Damage . | . . . Kills . | . . . Allies Corrupted . | . . . Allies Melted . | . . . Intel | -11 -10 -10 ------- Run | Yrd Mat Min Active Infowar (turns) 89 | . . 89 Seismic 89 | . . 89 Robot Analysis Total . | . . . Derelict Logs Recovered . | . . . Drone Launches . | . . . Drone Recoveries . | . . . Exploration | -11 -10 -10 ------------- Run | Yrd Mat Min Turns Passed 1522 | 963 452 107 Spaces Moved 717 | 425 236 56 Core 18 | 9 . 9 Treads 31 | . . 31 Legs 668 | 416 236 16 Wheels . | . . . Hover . | . . . Flight . | . . . Fastest Speed 50 | 50 120 120 Average Speed 121 | 118 120 151 Slowest Speed 250 | 120 120 250 Overloaded Moves . | . . . Propulsion Burnouts . | . . . Robots Hopped . | . . . Potential Cave-ins . | . . . Cave-ins Triggered . | . . . Exploration Rate (%) 33 | 32 41 26 Regions Visited 2 Branch Regions 1 Pre-discovered Areas . | . . . Known Exits Taken 1 | . 1 . Unknown Exits Taken 1 | 1 . . Scrap Searched . | . . . Spaces Dug . | . . . Terrain Destroyed . | . . . Melee . | . . . Projectile . | . . . AOE . | . . . Terrain Rammed . | . . . Walls Destroyed . | . . . Machines Disabled . | . . . Actions | -11 -10 -10 --------- Run | Yrd Mat Min Total 1287 | 883 333 71 Wait 504 | 445 56 3 Move 715 | 424 235 56 Hop . | . . . Pick Up 13 | 8 5 . Fast Attach 2 | 2 . . Attach 10 | 4 1 5 Detach . | . . . Swap 1 | . . 1 Drop . | . . . Fire 42 | . 36 6 Melee . | . . . Ram . | . . . Kick . | . . . Crush . | . . . Escape Stasis . | . . . Rewire . | . . . Trap . | . . . Miscellaneous . | . . . Route ------- -11/Scrapyard -10/Materials -10/Mines History --------- Turn | Location | Event 11 | -11/Scrapyard | Discovered new exit (range 13) 964 | -11/Scrapyard | Entered Materials 965 | -10/Materials | Build established: Mutant 1230 | -10/Materials | Identified exit to Mines 1416 | -10/Materials | Entered Mines 1417 | -10/Mines | Assembled infested the area 1454 | -10/Mines | Core integrity fell below 50% 1513 | -10/Mines | Core integrity fell below 20% 1523 | -10/Mines | Destroyed by S-10 Pest with Light Assault Rifle Last Messages --------------- 01440_ Aluminum Leg destroyed. 01443_ T-07 Excavator is excavating. 01446_ Knocked back. 01448_ T-07 Excavator is excavating. 01449_ Ion Engine destroyed. 01453_ T-07 Excavator is excavating. 01478_ Ion Engine destroyed. 01481_ as-59317 destroyed. 01483_ as-04002 suffers critical hit (Destroy). 01483_ as-04002 destroyed. 01483_ Med. Laser destroyed. 01484_ S-10 Pest destroyed. 01490_ K-01 Serf destroyed. 01490_ S-10 Pest system corrupted by crushing effect. 01490_ S-10 Pest destroyed. 01495_ S-10 Pest system corrupted by crushing effect. 01498_ S-10 Pest destroyed. 01507_ Lgt. Treads destroyed. 01514_ Seismic Detector destroyed. 01519_ S-10 Pest destroyed. Map ----- +----------------------------------------------------+ | ????????????????????????????????????? | | ????????????????????????????????????? | | ????????????????????????????????????? | | ????????????????????????????????????? | | ????????????????????????????????????? | | ????????????????????????????????????? | | ????????????????????????????????????? | | ????????????????????????????????????? | | ????????????????????????????????????? | | ????????????????????????????????????? | | ????????????????????????????????????? | | ????????????????????????????????????? | | ????????????????????????????????#???? | | ??????????????????????????????## ??? | | ????????????????????????????? ??? | | ????????????###?????????????? ???? | | ???????????## ##????????????? ???? | | ??????????## #????????????? #???? | | ??????????# $ #????????????? =%##??? | | ??????????# #????????????? #??? | | ??????????? #?????????????# ##?? | | ???????????# #????????????## ### | | ???????????# #???????????## | | ???????????# #??????????## | | ???????????# ############ | | ??????????##@ a a | | ??????????# s sa | | ?????????# ############## | | ?????????# #??????????## | | ?????????# #?????????## | | ?????????### ?????????# | | ???????????# #?????????# | | ??????????? #?????????## % | | ??????????? ##??????????##### | | ??????????? ????????????????## ## | | ??????????? ?????????????????#######? | | ??????????? ????????????????????????? | | ??????????? ????????????????????????? | | ??????????? ????????????????????????? | | ???????????#????????????????????????# | | ???????????????????????????????????# | | ?????????????????????????????????? | | ???????????????????????????????? | | ??????????????????????????????? | | ??????????????????????????????# | | ??????????????????????????????# | | ?????????????????????????????? | | ??????????????????????????????? | | ????????????????????????????????? | | ????????????????????????????????????? | +----------------------------------------------------+ Best States ------------- Heat Dissipation 25 Energy Generation 10 Energy Capacity 250 Matter Stores 409 Matter Capacity 500 Sight Range 16 Terrain Scan Density 10 Evasion (%) 55 Recoil Reduction 2 Item Schematics ----------------- None Robot Schematics ------------------ None Fabricated ------------ Nothing Repaired ---------- Nothing Alien Tech Used ----------------- None Achievements -------------- None Challenges ------------ None Game ------ Seed MetafiberMetafieldDeflector Manual? 0 Play Time 00:12:21 Cumulative 7.0 hours Start 2025.05.06 @ 21:22:38 End 2025.05.06 @ 21:33:11 Sessions 1 Manual Loads 0 Difficulty Rogue Special Mode None Game No. 8 Rogue 8 Adventurer 0 Explorer 0 Win Type - Total 0 Types 0/0/0/0/0/0/0/0/0/0 Lore% 8 Gallery% 12 Achievement% 11 Wizard Run 0 Options --------- Layout 0 ASCII 0 Keyboard 0 Movement Mouse Keybinds 0 Fullscreen 1 Font 18/SmallcapsGlow Map View 76x50 Zoom Use 0% Tactical HUD 1 Map Filters NONE Filters NONE Steam 1 RUN: 02af6835-1e12-4b4c-acb9-7a2561ae4312